Workbook

Sheet Estratto conto liquidità
B1: Liquidità Estratto conto
B3: Inizio anno fiscale: | D3: (Pre)Avviamento | E3: =UPPER(TEXT(InizioAnnoFiscale,"mmm")) -> SAU | F3: =UPPER(TEXT(EOMONTH(InizioAnnoFiscale,1),"mmm")) -> VAS | G3: =UPPER(TEXT(EOMONTH(InizioAnnoFiscale,2),"mmm")) -> KOV | H3: =UPPER(TEXT(EOMONTH(InizioAnnoFiscale,3),"mmm")) -> BAL | I3: =UPPER(TEXT(EOMONTH(InizioAnnoFiscale,4),"mmm")) -> GEG | J3: =UPPER(TEXT(EOMONTH(InizioAnnoFiscale,5),"mmm")) -> BIR | K3: =UPPER(TEXT(EOMONTH(InizioAnnoFiscale,6),"mmm")) -> LIE | L3: =UPPER(TEXT(EOMONTH(InizioAnnoFiscale,7),"mmm")) -> RGP | M3: =UPPER(TEXT(EOMONTH(InizioAnnoFiscale,8),"mmm")) -> RGS | N3: =UPPER(TEXT(EOMONTH(InizioAnnoFiscale,9),"mmm")) -> SPL | O3: =UPPER(TEXT(EOMONTH(InizioAnnoFiscale,10),"mmm")) -> LAP | P3: =UPPER(TEXT(EOMONTH(InizioAnnoFiscale,11),"mmm")) -> GRD | R3: Totale
B4: 2012-01-05 | D4: STIMA | E4: =InizioAnnoFiscale -> 2012-01-05 | F4: =EOMONTH(E4,0)+DAY(InizioAnnoFiscale) -> 2012-02-05 | G4: =EOMONTH(F4,0)+DAY(InizioAnnoFiscale) -> 2012-03-05 | H4: =EOMONTH(G4,0)+DAY(InizioAnnoFiscale) -> 2012-04-05 | I4: =EOMONTH(H4,0)+DAY(InizioAnnoFiscale) -> 2012-05-05 | J4: =EOMONTH(I4,0)+DAY(InizioAnnoFiscale) -> 2012-06-05 | K4: =EOMONTH(J4,0)+DAY(InizioAnnoFiscale) -> 2012-07-05 | L4: =EOMONTH(K4,0)+DAY(InizioAnnoFiscale) -> 2012-08-05 | M4: =EOMONTH(L4,0)+DAY(InizioAnnoFiscale) -> 2012-09-05 | N4: =EOMONTH(M4,0)+DAY(InizioAnnoFiscale) -> 2012-10-05 | O4: =EOMONTH(N4,0)+DAY(InizioAnnoFiscale) -> 2012-11-05 | P4: =EOMONTH(O4,0)+DAY(InizioAnnoFiscale) -> 2012-12-05 | R4: STIMA voce
B6: Disponibilità di cassa (inizio mese) | D6: 100 | E6: =D51 -> 100 | F6: =E51 -> -125 | G6: 45 | H6: -1 | I6: 224 | J6: 269 | K6: 269 | L6: 269 | M6: 269 | N6: 269 | O6: 269 | P6: 269 | R6: =P6 -> 269
B8: Saldi di cassa
B10: Vendite per cassa | E10: 125 | F10: 120 | G10: 130 | H10: 100 | R10: =SUM(SaldiDiCassa[[#This Row],[Periodo 0]:[Periodo 12]]) -> 475
B11: Raccolte da conti avere | H11: 75 | I11: 45 | R11: =SUM(SaldiDiCassa[[#This Row],[Periodo 0]:[Periodo 12]]) -> 120
B12: Prestiti/altri apporti di cassa. | E12: 50 | F12: 50 | G12: 50 | H12: 50 | R12: =SUM(SaldiDiCassa[[#This Row],[Periodo 0]:[Periodo 12]]) -> 200
B13: Totale | D13: =SUBTOTAL(109,SaldiDiCassa[Periodo 0]) -> 0 | E13: =SUBTOTAL(109,SaldiDiCassa[Periodo 1]) -> 175 | F13: =SUBTOTAL(109,SaldiDiCassa[Periodo 2]) -> 170 | G13: =SUBTOTAL(109,SaldiDiCassa[Periodo 3]) -> 180 | H13: =SUBTOTAL(109,SaldiDiCassa[Periodo 4]) -> 225 | I13: =SUBTOTAL(109,SaldiDiCassa[Periodo 5]) -> 45 | J13: =SUBTOTAL(109,SaldiDiCassa[Periodo 6]) -> 0 | K13: =SUBTOTAL(109,SaldiDiCassa[Periodo 7]) -> 0 | L13: =SUBTOTAL(109,SaldiDiCassa[Periodo 8]) -> 0 | M13: =SUBTOTAL(109,SaldiDiCassa[Periodo 9]) -> 0 | N13: =SUBTOTAL(109,SaldiDiCassa[Periodo 10]) -> 0 | O13: =SUBTOTAL(109,SaldiDiCassa[Periodo 11]) -> 0 | P13: =SUBTOTAL(109,SaldiDiCassa[Periodo 12]) -> 0 | R13: =SUBTOTAL(109,SaldiDiCassa[Totale]) -> 795
B14: Totale cassa disponibile (prima di uscite) | D14: =D6+SUM(SaldiDiCassa[Periodo 0]) -> 100 | E14: =E6+SUM(SaldiDiCassa[Periodo 1]) -> 275 | F14: =F6+SUM(SaldiDiCassa[Periodo 2]) -> 45 | G14: =G6+SUM(SaldiDiCassa[Periodo 3]) -> 225 | H14: =H6+SUM(SaldiDiCassa[Periodo 4]) -> 224 | I14: =I6+SUM(SaldiDiCassa[Periodo 5]) -> 269 | J14: =J6+SUM(SaldiDiCassa[Periodo 6]) -> 269 | K14: =K6+SUM(SaldiDiCassa[Periodo 7]) -> 269 | L14: =L6+SUM(SaldiDiCassa[Periodo 8]) -> 269 | M14: =M6+SUM(SaldiDiCassa[Periodo 9]) -> 269 | N14: =N6+SUM(SaldiDiCassa[Periodo 10]) -> 269 | O14: =O6+SUM(SaldiDiCassa[Periodo 11]) -> 269 | P14: =P6+SUM(SaldiDiCassa[Periodo 12]) -> 269 | R14: =R6+SUM(SaldiDiCassa[Totale]) -> 1064
B16: Uscite di cassa
B18: Acquisti (merci) | E18: 400 | G18: 226 | R18: =SUM(UsciteDiCassa[[#This Row],[Periodo 0]:[Periodo 12]]) -> 626
B19: Acquisti (specificare) | R19: =SUM(UsciteDiCassa[[#This Row],[Periodo 0]:[Periodo 12]]) -> 0
B20: Acquisti (specificare) | R20: =SUM(UsciteDiCassa[[#This Row],[Periodo 0]:[Periodo 12]]) -> 0
B21: Stipendi lordi (ritiro esatto) | R21: =SUM(UsciteDiCassa[[#This Row],[Periodo 0]:[Periodo 12]]) -> 0
B22: Spese gestione paghe (imposte, ecc.) | R22: =SUM(UsciteDiCassa[[#This Row],[Periodo 0]:[Periodo 12]]) -> 0
B23: Servizi esterni | R23: =SUM(UsciteDiCassa[[#This Row],[Periodo 0]:[Periodo 12]]) -> 0
B24: Forniture (ufficio e oper.) | R24: =SUM(UsciteDiCassa[[#This Row],[Periodo 0]:[Periodo 12]]) -> 0
B25: Riparazioni e manutenzione | R25: =SUM(UsciteDiCassa[[#This Row],[Periodo 0]:[Periodo 12]]) -> 0
B26: Pubblicità | R26: =SUM(UsciteDiCassa[[#This Row],[Periodo 0]:[Periodo 12]]) -> 0
B27: Auto, spedizioni e viaggi | R27: =SUM(UsciteDiCassa[[#This Row],[Periodo 0]:[Periodo 12]]) -> 0
B28: Contabilità e legali | R28: =SUM(UsciteDiCassa[[#This Row],[Periodo 0]:[Periodo 12]]) -> 0
B29: Affitto | R29: =SUM(UsciteDiCassa[[#This Row],[Periodo 0]:[Periodo 12]]) -> 0
B30: Telefono | R30: =SUM(UsciteDiCassa[[#This Row],[Periodo 0]:[Periodo 12]]) -> 0
B31: Luce e gas | R31: =SUM(UsciteDiCassa[[#This Row],[Periodo 0]:[Periodo 12]]) -> 0
B32: Assicurazione | R32: =SUM(UsciteDiCassa[[#This Row],[Periodo 0]:[Periodo 12]]) -> 0
B33: Imposte (immobili, ecc.) | R33: =SUM(UsciteDiCassa[[#This Row],[Periodo 0]:[Periodo 12]]) -> 0
B34: Interesse | R34: =SUM(UsciteDiCassa[[#This Row],[Periodo 0]:[Periodo 12]]) -> 0
B35: Altre spese (specificare) | R35: =SUM(UsciteDiCassa[[#This Row],[Periodo 0]:[Periodo 12]]) -> 0
B36: Altro (specificare) | R36: =SUM(UsciteDiCassa[[#This Row],[Periodo 0]:[Periodo 12]]) -> 0
B37: Altro (specificare) | R37: =SUM(UsciteDiCassa[[#This Row],[Periodo 0]:[Periodo 12]]) -> 0
B38: Varie | R38: =SUM(UsciteDiCassa[[#This Row],[Periodo 0]:[Periodo 12]]) -> 0
B39: Totale | D39: =SUBTOTAL(109,UsciteDiCassa[Periodo 0]) -> 0 | E39: =SUBTOTAL(109,UsciteDiCassa[Periodo 1]) -> 400 | F39: =SUBTOTAL(109,UsciteDiCassa[Periodo 2]) -> 0 | G39: =SUBTOTAL(109,UsciteDiCassa[Periodo 3]) -> 226 | H39: =SUBTOTAL(109,UsciteDiCassa[Periodo 4]) -> 0 | I39: =SUBTOTAL(109,UsciteDiCassa[Periodo 5]) -> 0 | J39: =SUBTOTAL(109,UsciteDiCassa[Periodo 6]) -> 0 | K39: =SUBTOTAL(109,UsciteDiCassa[Periodo 7]) -> 0 | L39: =SUBTOTAL(109,UsciteDiCassa[Periodo 8]) -> 0 | M39: =SUBTOTAL(109,UsciteDiCassa[Periodo 9]) -> 0 | N39: =SUBTOTAL(109,UsciteDiCassa[Periodo 10]) -> 0 | O39: =SUBTOTAL(109,UsciteDiCassa[Periodo 11]) -> 0 | P39: =SUBTOTAL(109,UsciteDiCassa[Periodo 12]) -> 0 | R39: =SUBTOTAL(109,UsciteDiCassa[Totale]) -> 626
B41: Uscite di cassa (non profitti e perdite)
B43: Pagamento debiti in linea capitale | R43: =SUM(UsciteDiCassa2[[#This Row],[Periodo 0]:[Periodo 12]]) -> 0
B44: Apporti di capitale (specificare) | R44: =SUM(UsciteDiCassa2[[#This Row],[Periodo 0]:[Periodo 12]]) -> 0
B45: Altri costi di avviamento | R45: =SUM(UsciteDiCassa2[[#This Row],[Periodo 0]:[Periodo 12]]) -> 0
B46: Riserve e/o depositi a garanzia | R46: =SUM(UsciteDiCassa2[[#This Row],[Periodo 0]:[Periodo 12]]) -> 0
B47: Distribuzione a soci | R47: =SUM(UsciteDiCassa2[[#This Row],[Periodo 0]:[Periodo 12]]) -> 0
B48: Totale | D48: =SUBTOTAL(109,UsciteDiCassa2[Periodo 0]) -> 0 | E48: =SUBTOTAL(109,UsciteDiCassa2[Periodo 1]) -> 0 | F48: =SUBTOTAL(109,UsciteDiCassa2[Periodo 2]) -> 0 | G48: =SUBTOTAL(109,UsciteDiCassa2[Periodo 3]) -> 0 | H48: =SUBTOTAL(109,UsciteDiCassa2[Periodo 4]) -> 0 | I48: =SUBTOTAL(109,UsciteDiCassa2[Periodo 5]) -> 0 | J48: =SUBTOTAL(109,UsciteDiCassa2[Periodo 6]) -> 0 | K48: =SUBTOTAL(109,UsciteDiCassa2[Periodo 7]) -> 0 | L48: =SUBTOTAL(109,UsciteDiCassa2[Periodo 8]) -> 0 | M48: =SUBTOTAL(109,UsciteDiCassa2[Periodo 9]) -> 0 | N48: =SUBTOTAL(109,UsciteDiCassa2[Periodo 10]) -> 0 | O48: =SUBTOTAL(109,UsciteDiCassa2[Periodo 11]) -> 0 | P48: =SUBTOTAL(109,UsciteDiCassa2[Periodo 12]) -> 0 | R48: =SUBTOTAL(109,UsciteDiCassa2[Totale]) -> 0
B49: Totale uscite di cassa | D49: =SUM(UsciteDiCassa[Periodo 0],UsciteDiCassa2[Periodo 0]) -> 0 | E49: =SUM(UsciteDiCassa[Periodo 1],UsciteDiCassa2[Periodo 1]) -> 400 | F49: =SUM(UsciteDiCassa[Periodo 2],UsciteDiCassa2[Periodo 2]) -> 0 | G49: =SUM(UsciteDiCassa[Periodo 3],UsciteDiCassa2[Periodo 3]) -> 226 | H49: =SUM(UsciteDiCassa[Periodo 4],UsciteDiCassa2[Periodo 4]) -> 0 | I49: =SUM(UsciteDiCassa[Periodo 5],UsciteDiCassa2[Periodo 5]) -> 0 | J49: =SUM(UsciteDiCassa[Periodo 6],UsciteDiCassa2[Periodo 6]) -> 0 | K49: =SUM(UsciteDiCassa[Periodo 7],UsciteDiCassa2[Periodo 7]) -> 0 | L49: =SUM(UsciteDiCassa[Periodo 8],UsciteDiCassa2[Periodo 8]) -> 0 | M49: =SUM(UsciteDiCassa[Periodo 9],UsciteDiCassa2[Periodo 9]) -> 0 | N49: =SUM(UsciteDiCassa[Periodo 10],UsciteDiCassa2[Periodo 10]) -> 0 | O49: =SUM(UsciteDiCassa[Periodo 11],UsciteDiCassa2[Periodo 11]) -> 0 | P49: =SUM(UsciteDiCassa[Periodo 12],UsciteDiCassa2[Periodo 12]) -> 0 | R49: =SUM(UsciteDiCassa[Totale],UsciteDiCassa2[Totale]) -> 626
B51: Posizione cassa (fine mese) | D51: =D14-D49 -> 100 | E51: -125 | F51: 45 | G51: -1 | H51: 224 | I51: 269 | J51: 269 | K51: 269 | L51: 269 | M51: 269 | N51: 269 | O51: 269 | P51: 269 | R51: =R14-R49 -> 438
